[Event "Ruzomberok GM 2019"]
[Site "Ruzomberok"]
[Date "2019.07.01"]
[Round "3.1"]
[White "Nayhebaver, Martin"]
[Black "Jurcik, Marian"]
[Result "1-0"]
[ECO "B09"]
[WhiteElo "2473"]
[BlackElo "2501"]
[Annotator "ChessBase"]
[PlyCount "101"]
[EventDate "2019.06.29"]
[EventType "tourn"]
[EventCountry "SVK"]
[SourceTitle "playchess.com"]
[Source "ChessBase"]
[SourceQuality "1"]
[TimeControl "40/5400+30:1800+30"]

1. e4 {[%emt 0:00:00]} d6 {[%emt 0:00:00]} 2. d4 {[%emt 0:00:10]} Nf6 {[%emt 0:00:00]} 3. Nc3 {[%emt 0:00:18]} g6 {[%emt 0:00:00]} 4. f4 {[%emt 0:00:49]} Bg7 {[%emt 0:00:03]} 5. Nf3 {[%emt 0:00:20]} c5 {[%emt 0:00:27]} 6. dxc5 {[%emt 0:00:25]} Qa5 {[%emt 0:00:21]} 7. Bd3 {[%emt 0:00:32]} Qxc5 {[%emt 0:00:07]} 8. Qe2 {[%emt 0:00:18]} Nc6 {[%emt 0:00:36]} 9. a3 {[%emt 0:10:37]} Bg4 {[%emt 0:02:57]} 10. Be3 {[%emt 0:01:15]} Qa5 {[%emt 0:00:11]} 11. O-O {[%emt 0:02:59]} Nd7 {[%emt 0:01:03]} 12. b4 {[%emt 0:18:19]} Qd8 {[%emt 0:06:37]} 13. Qe1 {[%emt 0:00:24]} Bxf3 {[%emt 0:11:36]} 14. Rxf3 {[%emt 0:00:20]} Rc8 {[%emt 0:01:30]} 15. Bd2 {[%emt 0:03:43]} Nb6 {[%emt 0:02:07]} 16. Rd1 {[%emt 0:06:31]} Nd4 {[%emt 0:00:54]} 17. Rh3 {[%emt 0:00:07]} Nc4 {[%emt 0:04:26]} 18. Bc1 {[%emt 0:00:57]} e6 {[%emt 0:08:51]} 19. Ne2 {[%emt 0:08:38]} O-O {[%emt 0:04:50]} 20. Kh1 {[%emt 0:03:53]} Qe7 {[%emt 0:04:36]} 21. Nxd4 {[%emt 0:15:27]} Bxd4 {[%emt 0:00:14]} 22. Bxc4 {[%emt 0:01:05]} Rxc4 {[%emt 0:00:08]} 23. Rhd3 {[%emt 0:00:06]} Qf6 {[%emt 0:06:09]} 24. Qd2 {[%emt 0:02:44]} Bb2 {[%emt 0:03:49]} 25. Rxd6 {[%emt 0:02:29]} Bxc1 {[%emt 0:00:35]} 26. Rxc1 {[%emt 0:00:35]} Rxe4 {[%emt 0:00:17]} 27. c4 {[%emt 0:00:19]} Rxf4 {[%emt 0:00:53]} 28. Kg1 {[%emt 0:00:02]} Qe5 {[%emt 0:05:58]} 29. Re1 {[%emt 0:03:54]} Re4 {[%emt 0:02:47]} 30. Rxe4 {[%emt 0:00:03]} Qxe4 {[%emt 0:00:04]} 31. c5 {[%emt 0:00:05]} Qe5 {[%emt 0:03:36]} 32. Rd7 {[%emt 0:01:21]} Qa1+ {[%emt 0:01:51]} 33. Kf2 {[%emt 0:03:19]} Qxa3 {[%emt 0:04:06]} 34. Rxb7 {[%emt 0:00:23]} a5 {[%emt 0:01:23]} 35. c6 {[%emt 0:02:35]} axb4 {[%emt 0:00:48]} 36. c7 {[%emt 0:04:14]} b3 {[%emt 0:14:56]} 37. Qd8 {[%emt 0:08:42]} Qc5+ {[%emt 0:01:35]} 38. Ke2 {[%emt 0:00:29]} b2 {[%emt 0:07:17]} 39. Rb8 {[%emt 0:00:03]} b1=Q {[%emt 0:01:16]} 40. Qxf8+ {[%emt 0:00:10]} Qxf8 {[%emt 0:00:15]} 41. Rxb1 {[%emt 0:30:06]} Kg7 {[%emt 0:04:02]} 42. Rb8 {[%emt 0:00:00]} Qd6 {[%emt 0:06:20]} 43. c8=Q {[%emt 0:00:00]} Qe5+ {[%emt 0:01:49]} 44. Kd1 {[%emt 0:00:00]} Qd4+ {[%emt 0:09:40]} 45. Kc2 {[%emt 0:00:00]} Qe4+ {[%emt 0:00:48]} 46. Kb3 {[%emt 0:00:00]} Qb1+ {[%emt 0:00:24]} 47. Kc4 {[%emt 0:00:00]} Qf1+ {[%emt 0:03:31]} 48. Kc5 {[%emt 0:00:00]} Qg1+ {[%emt 0:00:13]} 49. Kd6 {[%emt 0:00:00]} Qxh2+ {[%emt 0:00:43]} 50. Ke7 {[%emt 0:00:00]} Qh4+ {[%emt 0:00:44]} 51. Ke8 {[%emt 0:00:00]} 1-0

[Event "Ruzomberok GM 2019"]
[Site "Ruzomberok"]
[Date "2019.07.01"]
[Round "3.2"]
[White "Pechac, Jergus"]
[Black "Druska, Juraj"]
[Result "1-0"]
[ECO "D35"]
[WhiteElo "2473"]
[BlackElo "2460"]
[Annotator "ChessBase"]
[PlyCount "73"]
[EventDate "2019.06.29"]
[EventType "tourn"]
[EventCountry "SVK"]
[SourceTitle "playchess.com"]
[Source "ChessBase"]
[SourceQuality "1"]
[TimeControl "40/5400+30:1800+30"]

1. d4 {[%emt 0:00:00]} d5 {[%emt 0:00:00]} 2. c4 {[%emt 0:00:00]} e6 {[%emt 0:00:00]} 3. Nc3 {[%emt 0:00:00]} Nf6 {[%emt 0:00:04]} 4. cxd5 {[%emt 0:00:00]} Nxd5 {[%emt 0:00:24]} 5. e4 {[%emt 0:00:00]} Nxc3 {[%emt 0:00:04]} 6. bxc3 {[%emt 0:00:03]} c5 {[%emt 0:00:01]} 7. Rb1 {[%emt 0:00:12]} Be7 {[%emt 0:00:29]} 8. Bb5+ {[%emt 0:00:05]} Nd7 {[%emt 0:05:41]} 9. Nf3 {[%emt 0:00:32]} O-O {[%emt 0:04:36]} 10. O-O {[%emt 0:00:15]} a6 {[%emt 0:12:56]} 11. Bd3 {[%emt 0:00:43]} b5 {[%emt 0:01:47]} 12. Qe2 {[%emt 0:02:09]} Bb7 {[%emt 0:06:12]} 13. Rd1 {[%emt 0:07:43]} cxd4 {[%emt 0:04:41]} 14. cxd4 {[%emt 0:00:06]} Nb6 {[%emt 0:00:29]} 15. Bd2 {[%emt 0:02:34]} Rc8 {[%emt 0:11:10]} 16. Ba5 {[%emt 0:01:01]} Qd6 {[%emt 0:00:11]} 17. d5 {[%emt 0:02:06]} exd5 {[%emt 0:07:25]} 18. e5 {[%emt 0:01:08]} Qh6 {[%emt 0:02:58]} 19. Nd4 {[%emt 0:13:42]} Na4 {[%emt 0:14:01]} 20. Bd2 {[%emt 0:06:41]} Qb6 {[%emt 0:00:16]} 21. Nf5 {[%emt 0:00:41]} Qe6 {[%emt 0:05:07]} 22. Nxg7 {[%emt 0:05:04]} Kxg7 {[%emt 0:01:54]} 23. Qh5 {[%emt 0:00:07]} Rh8 {[%emt 0:07:54]} 24. Bf5 {[%emt 0:01:08]} Qg6 {[%emt 0:00:59]} 25. Bxg6 {[%emt 0:00:41]} hxg6 {[%emt 0:00:01]} 26. Qg4 {[%emt 0:02:48]} Nc5 {[%emt 0:01:05]} 27. Bg5 {[%emt 0:01:03]} Rhe8 {[%emt 0:05:03]} 28. Bxe7 {[%emt 0:03:28]} Rxe7 {[%emt 0:00:01]} 29. Rxd5 {[%emt 0:00:44]} Ne6 {[%emt 0:01:56]} 30. Rd6 {[%emt 0:01:12]} Rc4 {[%emt 0:00:21]} 31. Qd1 {[%emt 0:01:46]} Nf4 {[%emt 0:05:03]} 32. Rd7 {[%emt 0:00:05]} Rxd7 {[%emt 0:00:47]} 33. Qxd7 {[%emt 0:00:07]} Bc6 {[%emt 0:01:08]} 34. Qe7 {[%emt 0:00:19]} Ne6 {[%emt 0:00:56]} 35. h4 {[%emt 0:00:54]} Rc2 {[%emt 0:01:17]} 36. Rd1 {[%emt 0:00:13]} Be4 {[%emt 0:00:31]} 37. Rd7 {[%emt 0:00:12]} 1-0

[Event "Ruzomberok GM 2019"]
[Site "Ruzomberok"]
[Date "2019.07.01"]
[Round "3.3"]
[White "Manik, Mikulas"]
[Black "Repka, Christopher"]
[Result "0-1"]
[ECO "C70"]
[WhiteElo "2399"]
[BlackElo "2482"]
[Annotator "ChessBase"]
[PlyCount "72"]
[EventDate "2019.06.29"]
[EventType "tourn"]
[EventCountry "SVK"]
[SourceTitle "playchess.com"]
[Source "ChessBase"]
[SourceQuality "1"]
[TimeControl "40/5400+30:1800+30"]

1. e4 {[%emt 0:00:00]} e5 {[%emt 0:00:00]} 2. Nf3 {[%emt 0:00:00]} Nc6 {[%emt 0:00:00]} 3. Bb5 {[%emt 0:00:00]} a6 {[%emt 0:00:00]} 4. Ba4 {[%emt 0:00:00]} b5 {[%emt 0:00:38]} 5. Bb3 {[%emt 0:00:00]} Na5 {[%emt 0:00:04]} 6. O-O {[%emt 0:08:25]} d6 {[%emt 0:01:57]} 7. d4 {[%emt 0:00:48]} exd4 {[%emt 0:00:12]} 8. Nxd4 {[%emt 0:01:18]} Bb7 {[%emt 0:00:24]} 9. a4 {[%emt 0:08:21]} c5 {[%emt 0:01:13]} 10. Nf5 {[%emt 0:00:09]} g6 {[%emt 0:00:41]} 11. Ng3 {[%emt 0:01:01]} Nf6 {[%emt 0:05:08]} 12. axb5 {[%emt 0:10:18]} axb5 {[%emt 0:00:27]} 13. e5 {[%emt 0:01:44]} Nxb3 {[%emt 0:00:41]} 14. Rxa8 {[%emt 0:00:29]} Qxa8 {[%emt 0:00:20]} 15. exf6 {[%emt 0:04:10]} Nxc1 {[%emt 0:00:07]} 16. Re1+ {[%emt 0:00:32]} Kd7 {[%emt 0:01:13]} 17. Qxc1 {[%emt 0:03:17]} h5 {[%emt 0:04:21]} 18. Qf4 {[%emt 0:10:39]} Bxg2 {[%emt 0:04:01]} 19. Ne4 {[%emt 0:00:27]} Bxe4 {[%emt 0:00:49]} 20. Rxe4 {[%emt 0:00:05]} d5 {[%emt 0:02:47]} 21. Re1 {[%emt 0:00:25]} Bd6 {[%emt 0:00:07]} 22. Qf3 {[%emt 0:00:06]} Re8 {[%emt 0:04:12]} 23. Rxe8 {[%emt 0:05:04]} Qxe8 {[%emt 0:02:00]} 24. Nc3 {[%emt 0:03:04]} Qe5 {[%emt 0:00:55]} 25. Nxd5 {[%emt 0:00:48]} Ke6 {[%emt 0:00:05]} 26. Nb6 {[%emt 0:22:13]} Qxh2+ {[%emt 0:05:16]} 27. Kf1 {[%emt 0:02:44]} Bc7 {[%emt 0:17:39]} 28. Nd5 {[%emt 0:04:50]} Qe5 {[%emt 0:03:00]} 29. Ne3 {[%emt 0:00:30]} c4 {[%emt 0:04:01]} 30. Qc6+ {[%emt 0:03:12]} Bd6 {[%emt 0:00:52]} 31. Qf3 {[%emt 0:00:34]} Qc5 {[%emt 0:03:41]} 32. b4 {[%emt 0:02:07]} cxb3 {[%emt 0:00:30]} 33. cxb3 {[%emt 0:00:05]} Be5 {[%emt 0:00:30]} 34. b4 {[%emt 0:01:10]} Qd6 {[%emt 0:03:16]} 35. Qb7 {[%emt 0:00:13]} Qd3+ {[%emt 0:00:39]} 36. Kg1 {[%emt 0:01:00]} Kxf6 {[%emt 0:00:06]} 0-1

[Event "Ruzomberok GM 2019"]
[Site "Ruzomberok"]
[Date "2019.07.01"]
[Round "3.4"]
[White "Hrabusa, Matej"]
[Black "Mazur, Stefan"]
[Result "1/2-1/2"]
[ECO "A49"]
[WhiteElo "2397"]
[BlackElo "2426"]
[Annotator "NA"]
[PlyCount "83"]
[EventDate "2019.06.29"]
[EventType "tourn"]
[EventCountry "SVK"]
[SourceTitle "playchess.com"]
[Source "ChessBase"]
[SourceQuality "1"]
[TimeControl "40/5400+30:1800+30"]

1. Nf3 {[%emt 0:00:00]} Nf6 {[%emt 0:00:17]} 2. d4 {[%emt 0:00:00]} g6 {[%emt 0:00:14]} 3. g3 {[%emt 0:00:00]} Bg7 {[%emt 0:00:09]} 4. Bg2 {[%emt 0:00:00]} O-O {[%emt 0:00:08]} 5. O-O {[%emt 0:00:00]} d6 {[%emt 0:01:39]} 6. b3 {[%emt 0:00:22]} e5 {[%emt 0:19:26]} 7. dxe5 {[%emt 0:01:37]} Ng4 {[%emt 0:04:33]} 8. Bb2 {[%emt 0:02:05]} Nc6 {[%emt 0:03:41]} 9. Qc1 {[%emt 0:02:05]} Ngxe5 {[%emt 0:02:39]} 10. Nxe5 {[%emt 0:02:09]} dxe5 {[%emt 0:10:06]} 11. Rd1 {[%emt 0:13:44]} Bd7 {[%emt 0:00:10]} 12. Rd2 {[%emt 0:17:32]} Qc8 {[%emt 0:01:41]} 13. Qd1 {[%emt 0:01:12]} Bh3 {[%emt 0:01:07]} 14. Na3 {[%emt 0:02:56]} Bxg2 {[%emt 0:03:24]} 15. Kxg2 {[%emt 0:00:03]} Qe6 {[%emt 0:01:15]} 16. Nb5 {[%emt 0:08:19]} Rac8 {[%emt 0:02:53]} 17. c4 {[%emt 0:03:53]} a6 {[%emt 0:11:06]} 18. Nc3 {[%emt 0:00:25]} e4 {[%emt 0:00:11]} 19. Qc2 {[%emt 0:06:29]} e3 {[%emt 0:05:10]} 20. fxe3 {[%emt 0:00:10]} Qxe3 {[%emt 0:02:05]} 21. Nd5 {[%emt 0:00:24]} Qe6 {[%emt 0:01:29]} 22. Nf4 {[%emt 0:03:06]} Qe7 {[%emt 0:01:45]} 23. Nd5 {[%emt 0:01:53]} Qe6 {[%emt 0:00:08]} 24. Nf4 {[%emt 0:00:24]} Qe8 {[%emt 0:01:38]} 25. Bxg7 {[%emt 0:02:41]} Kxg7 {[%emt 0:00:10]} 26. Rf1 {[%emt 0:02:43]} Ne5 {[%emt 0:01:00]} 27. Qc3 {[%emt 0:02:28]} f6 {[%emt 0:01:48]} 28. h3 {[%emt 0:01:39]} Qc6+ {[%emt 0:04:18]} 29. Kh2 {[%emt 0:00:55]} Rce8 {[%emt 0:00:24]} 30. Qd4 {[%emt 0:07:14]} Rf7 {[%emt 0:04:31]} 31. Qd5 {[%emt 0:04:21]} Rd7 {[%emt 0:05:27]} 32. Qxc6 {[%emt 0:01:27]} bxc6 {[%emt 0:00:03]} 33. Rfd1 {[%emt 0:05:03]} Rxd2 {[%emt 0:00:45]} 34. Rxd2 {[%emt 0:00:04]} g5 {[%emt 0:02:40]} 35. Ng2 {[%emt 0:03:15]} f5 {[%emt 0:00:58]} 36. Kg1 {[%emt 0:01:33]} Kf6 {[%emt 0:00:31]} 37. Kf2 {[%emt 0:00:21]} a5 {[%emt 0:02:16]} 38. Ne1 {[%emt 0:01:37]} a4 {[%emt 0:03:57]} 39. Nf3 {[%emt 0:00:52]} axb3 {[%emt 0:02:49]} 40. axb3 {[%emt 0:00:15]} Nxf3 {[%emt 0:00:55]} 41. exf3 {[%emt 0:31:26]} Rb8 {[%emt 0:03:36]} 42. Rd7 {[%emt 0:00:00]} 1/2-1/2

[Event "Ruzomberok GM 2019"]
[Site "Ruzomberok"]
[Date "2019.07.01"]
[Round "3.5"]
[White "Petenyi, Tamas"]
[Black "Pacher, Milan"]
[Result "1/2-1/2"]
[ECO "C65"]
[WhiteElo "2412"]
[BlackElo "2434"]
[Annotator "NA"]
[PlyCount "61"]
[EventDate "2019.06.29"]
[EventType "tourn"]
[EventCountry "SVK"]
[SourceTitle "playchess.com"]
[Source "ChessBase"]
[SourceQuality "1"]
[TimeControl "40/5400+30:1800+30"]

1. e4 {[%emt 0:00:00]} e5 {[%emt 0:00:00]} 2. Nf3 {[%emt 0:00:01]} Nc6 {[%emt 0:00:00]} 3. Bb5 {[%emt 0:00:10]} Nf6 {[%emt 0:00:00]} 4. Qe2 {[%emt 0:01:36]} Bc5 {[%emt 0:01:03]} 5. c3 {[%emt 0:00:22]} O-O {[%emt 0:03:01]} 6. d3 {[%emt 0:00:55]} Re8 {[%emt 0:02:17]} 7. O-O {[%emt 0:01:12]} a6 {[%emt 0:01:08]} 8. Ba4 {[%emt 0:00:10]} h6 {[%emt 0:02:17]} 9. b4 {[%emt 0:08:46]} Ba7 {[%emt 0:01:40]} 10. Be3 {[%emt 0:03:30]} Bxe3 {[%emt 0:02:49]} 11. Qxe3 {[%emt 0:05:31]} b5 {[%emt 0:08:27]} 12. Bb3 {[%emt 0:01:41]} a5 {[%emt 0:00:55]} 13. bxa5 {[%emt 0:02:30]} Nxa5 {[%emt 0:00:12]} 14. Bc2 {[%emt 0:02:17]} d5 {[%emt 0:05:14]} 15. Nbd2 {[%emt 0:02:20]} Qd6 {[%emt 0:01:45]} 16. Rfb1 {[%emt 0:04:15]} Qa3 {[%emt 0:10:45]} 17. Rxb5 {[%emt 0:10:50]} Qxc3 {[%emt 0:00:27]} 18. Rc1 {[%emt 0:00:56]} dxe4 {[%emt 0:15:46]} 19. dxe4 {[%emt 0:10:41]} Qxe3 {[%emt 0:02:05]} 20. fxe3 {[%emt 0:00:01]} Ng4 {[%emt 0:02:12]} 21. Ba4 {[%emt 0:05:33]} c6 {[%emt 0:06:03]} 22. Rbc5 {[%emt 0:02:15]} Be6 {[%emt 0:02:03]} 23. Nxe5 {[%emt 0:09:09]} Nb7 {[%emt 0:09:11]} 24. Bxc6 {[%emt 0:00:45]} Nxc5 {[%emt 0:00:06]} 25. Bxa8 {[%emt 0:01:29]} Rxa8 {[%emt 0:11:36]} 26. Nxg4 {[%emt 0:02:07]} Nd3 {[%emt 0:02:36]} 27. Rc3 {[%emt 0:00:16]} Rd8 {[%emt 0:02:34]} 28. h3 {[%emt 0:03:31]} Bxg4 {[%emt 0:03:20]} 29. hxg4 {[%emt 0:00:06]} Ne5 {[%emt 0:00:05]} 30. Nf3 {[%emt 0:02:50]} Nxg4 {[%emt 0:00:12]} 31. Kf1 {[%emt 0:01:19]} 1/2-1/2

[Event "Ruzomberok GM 2019"]
[Site "Ruzomberok"]
[Date "2019.07.02"]
[Round "4.1"]
[White "Jurcik, Marian"]
[Black "Pacher, Milan"]
[Result "1/2-1/2"]
[ECO "C65"]
[WhiteElo "2501"]
[BlackElo "2434"]
[Annotator "ChessBase"]
[PlyCount "60"]
[EventDate "2019.06.29"]
[EventType "tourn"]
[EventCountry "SVK"]
[SourceTitle "playchess.com"]
[Source "ChessBase"]
[SourceQuality "1"]
[TimeControl "40/5400+30:1800+30"]

1. e4 {[%emt 0:00:00]} e5 {[%emt 0:00:00]} 2. Nf3 {[%emt 0:00:00]} Nc6 {[%emt 0:00:00]} 3. Bb5 {[%emt 0:00:39]} Nf6 {[%emt 0:00:00]} 4. d3 {[%emt 0:00:52]} Bc5 {[%emt 0:00:07]} 5. Bxc6 {[%emt 0:00:42]} dxc6 {[%emt 0:00:03]} 6. Bg5 {[%emt 0:00:08]} Be6 {[%emt 0:08:21]} 7. Nbd2 {[%emt 0:02:16]} Qd6 {[%emt 0:00:41]} 8. Bxf6 {[%emt 0:02:09]} gxf6 {[%emt 0:00:02]} 9. Nc4 {[%emt 0:01:05]} Bxc4 {[%emt 0:09:03]} 10. dxc4 {[%emt 0:00:11]} O-O-O {[%emt 0:00:17]} 11. O-O {[%emt 0:07:18]} Bxf2+ {[%emt 0:00:53]} 12. Kh1 {[%emt 0:00:24]} Qxd1 {[%emt 0:00:51]} 13. Raxd1 {[%emt 0:00:14]} Rxd1 {[%emt 0:00:19]} 14. Rxd1 {[%emt 0:00:04]} Rd8 {[%emt 0:04:22]} 15. Rxd8+ {[%emt 0:01:09]} Kxd8 {[%emt 0:00:02]} 16. g4 {[%emt 0:00:16]} Ke7 {[%emt 0:07:41]} 17. Kg2 {[%emt 0:00:15]} Bd4 {[%emt 0:00:12]} 18. b3 {[%emt 0:13:39]} Kd6 {[%emt 0:00:58]} 19. Ne1 {[%emt 0:00:12]} b5 {[%emt 0:00:33]} 20. Nd3 {[%emt 0:00:28]} bxc4 {[%emt 0:02:23]} 21. bxc4 {[%emt 0:00:01]} c5 {[%emt 0:01:47]} 22. Kf3 {[%emt 0:03:01]} h6 {[%emt 0:10:24]} 23. Nc1 {[%emt 0:01:38]} Bb2 {[%emt 0:01:35]} 24. Nb3 {[%emt 0:07:08]} Bc3 {[%emt 0:00:46]} 25. Ke3 {[%emt 0:01:22]} Bd4+ {[%emt 0:00:45]} 26. Kd3 {[%emt 0:03:18]} Kc6 {[%emt 0:02:07]} 27. Nd2 {[%emt 0:04:13]} Bb2 {[%emt 0:01:31]} 28. Nb3 {[%emt 0:07:19]} Bd4 {[%emt 0:00:41]} 29. Nc1 {[%emt 0:05:51]} Kb6 {[%emt 0:01:10]} 30. Nb3 {[%emt 0:01:02]} Kc6 {[%emt 0:00:35] Kxd4 Kd5+} 1/2-1/2

[Event "Ruzomberok GM 2019"]
[Site "Ruzomberok"]
[Date "2019.07.02"]
[Round "4.2"]
[White "Mazur, Stefan"]
[Black "Petenyi, Tamas"]
[Result "1-0"]
[ECO "B06"]
[WhiteElo "2426"]
[BlackElo "2412"]
[Annotator "ChessBase"]
[PlyCount "81"]
[EventDate "2019.06.29"]
[EventType "tourn"]
[EventCountry "SVK"]
[SourceTitle "playchess.com"]
[Source "ChessBase"]
[SourceQuality "1"]
[TimeControl "40/5400+30:1800+30"]

1. e4 {[%emt 0:06:01]} g6 {[%emt 0:00:00]} 2. d4 {[%emt 0:00:22]} Bg7 {[%emt 0:00:00]} 3. Nc3 {[%emt 0:00:06]} c6 {[%emt 0:00:11]} 4. f4 {[%emt 0:00:22]} d6 {[%emt 0:01:10]} 5. Be3 {[%emt 0:00:52]} Nf6 {[%emt 0:01:02]} 6. h3 {[%emt 0:00:11]} O-O {[%emt 0:01:13]} 7. Nf3 {[%emt 0:01:18]} b5 {[%emt 0:03:32]} 8. e5 {[%emt 0:00:58]} Nfd7 {[%emt 0:05:51]} 9. Bd3 {[%emt 0:04:07]} Nb6 {[%emt 0:03:29]} 10. O-O {[%emt 0:03:48]} Na6 {[%emt 0:02:13]} 11. a3 {[%emt 0:06:58]} b4 {[%emt 0:07:34]} 12. Ne4 {[%emt 0:07:24]} bxa3 {[%emt 0:01:34]} 13. c3 {[%emt 0:04:44]} Nd5 {[%emt 0:08:08]} 14. Bd2 {[%emt 0:03:47]} axb2 {[%emt 0:06:10]} 15. Rxa6 {[%emt 0:01:13]} Bxa6 {[%emt 0:01:55]} 16. Bxa6 {[%emt 0:00:07]} Qa5 {[%emt 0:07:49]} 17. Bd3 {[%emt 0:02:02]} dxe5 {[%emt 0:13:03]} 18. fxe5 {[%emt 0:02:29]} f5 {[%emt 0:02:59]} 19. Nc5 {[%emt 0:04:10]} Rfb8 {[%emt 0:01:54]} 20. c4 {[%emt 0:08:19]} Nb4 {[%emt 0:02:00]} 21. Bb1 {[%emt 0:00:52]} Qa1 {[%emt 0:03:53]} 22. Qe1 {[%emt 0:05:54]} Na2 {[%emt 0:01:16]} 23. Bg5 {[%emt 0:17:09]} Nc1 {[%emt 0:01:17]} 24. Nd2 {[%emt 0:00:06]} h6 {[%emt 0:04:27]} 25. Be3 {[%emt 0:02:24]} Qa3 {[%emt 0:03:41]} 26. Rf3 {[%emt 0:01:10]} Qc3 {[%emt 0:03:30]} 27. Ne6 {[%emt 0:02:56]} Nb3 {[%emt 0:01:46]} 28. Qg3 {[%emt 0:04:58]} Kf7 {[%emt 0:04:02]} 29. Nxg7 {[%emt 0:04:00]} Nxd2 {[%emt 0:02:32]} 30. e6+ {[%emt 0:00:09]} Kg8 {[%emt 0:00:46]} 31. Bxd2 {[%emt 0:04:40]} Qxd4+ {[%emt 0:03:26]} 32. Kh2 {[%emt 0:00:09]} Qxd2 {[%emt 0:00:40]} 33. Nxf5 {[%emt 0:00:57]} Qg5 {[%emt 0:01:21]} 34. Qe5 {[%emt 0:01:45]} gxf5 {[%emt 0:01:02]} 35. Rg3 {[%emt 0:00:12]} Rf8 {[%emt 0:00:03]} 36. Rxg5+ {[%emt 0:00:40]} hxg5 {[%emt 0:00:01]} 37. Qg3 {[%emt 0:00:22]} Rab8 {[%emt 0:00:16]} 38. Qxg5+ {[%emt 0:00:20]} Kh8 {[%emt 0:00:04]} 39. Qxe7 {[%emt 0:00:38]} a5 {[%emt 0:00:31]} 40. Qh4+ {[%emt 0:00:29]} Kg7 {[%emt 0:00:09]} 41. Qg5+ {[%emt 0:30:07]} 1-0

[Event "Ruzomberok GM 2019"]
[Site "Ruzomberok"]
[Date "2019.07.02"]
[Round "4.3"]
[White "Repka, Christopher"]
[Black "Hrabusa, Matej"]
[Result "1/2-1/2"]
[ECO "A10"]
[WhiteElo "2482"]
[BlackElo "2397"]
[Annotator "ChessBase"]
[PlyCount "60"]
[EventDate "2019.06.29"]
[EventType "tourn"]
[EventCountry "SVK"]
[SourceTitle "playchess.com"]
[Source "ChessBase"]
[SourceQuality "1"]
[TimeControl "40/5400+30:1800+30"]

1. c4 {[%emt 0:00:00]} f5 {[%emt 0:00:00]} 2. Nc3 {[%emt 0:01:09]} Nf6 {[%emt 0:00:00]} 3. d4 {[%emt 0:00:28]} d6 {[%emt 0:00:57]} 4. Bg5 {[%emt 0:01:52]} Nbd7 {[%emt 0:04:25]} 5. Qc2 {[%emt 0:00:03]} g6 {[%emt 0:05:52]} 6. e4 {[%emt 0:00:10]} fxe4 {[%emt 0:02:26]} 7. Nxe4 {[%emt 0:00:18]} Bg7 {[%emt 0:01:36]} 8. Ng3 {[%emt 0:00:26]} c5 {[%emt 0:10:19]} 9. d5 {[%emt 0:04:08]} Ne5 {[%emt 0:08:39]} 10. Be2 {[%emt 0:01:35]} O-O {[%emt 0:04:52]} 11. Nf3 {[%emt 0:00:11]} Nxf3+ {[%emt 0:01:58]} 12. Bxf3 {[%emt 0:00:16]} b5 {[%emt 0:00:23]} 13. O-O {[%emt 0:12:29]} bxc4 {[%emt 0:04:14]} 14. Qxc4 {[%emt 0:00:04]} Rb8 {[%emt 0:01:03]} 15. Qe2 {[%emt 0:00:14]} Rf7 {[%emt 0:03:47]} 16. Rfe1 {[%emt 0:01:28]} Qb6 {[%emt 0:03:59]} 17. b3 {[%emt 0:01:11]} Nd7 {[%emt 0:03:02]} 18. Rac1 {[%emt 0:01:23]} Ne5 {[%emt 0:03:41]} 19. Be4 {[%emt 0:00:17]} Ba6 {[%emt 0:01:44]} 20. Qd1 {[%emt 0:00:27]} Rbf8 {[%emt 0:06:12]} 21. Be3 {[%emt 0:00:34]} Qb4 {[%emt 0:04:09]} 22. a3 {[%emt 0:07:17]} Qa5 {[%emt 0:05:56]} 23. Rb1 {[%emt 0:01:51]} Bc8 {[%emt 0:02:35]} 24. b4 {[%emt 0:00:16]} Qxa3 {[%emt 0:01:30]} 25. bxc5 {[%emt 0:00:36]} Ng4 {[%emt 0:01:03]} 26. c6 {[%emt 0:03:18]} Rxf2 {[%emt 0:03:04]} 27. Bxf2 {[%emt 0:02:39]} Nxf2 {[%emt 0:00:15]} 28. Qc1 {[%emt 0:11:32]} Bd4 {[%emt 0:07:47]} 29. Qxa3 {[%emt 0:00:47]} Nh3+ {[%emt 0:00:07]} 30. Kh1 {[%emt 0:00:03]} Nf2+ 1/2-1/2

[Event "Ruzomberok GM 2019"]
[Site "Ruzomberok"]
[Date "2019.07.02"]
[Round "4.4"]
[White "Druska, Juraj"]
[Black "Manik, Mikulas"]
[Result "1/2-1/2"]
[ECO "B90"]
[WhiteElo "2460"]
[BlackElo "2399"]
[Annotator "ChessBase"]
[PlyCount "63"]
[EventDate "2019.06.29"]
[EventType "tourn"]
[EventCountry "SVK"]
[SourceTitle "playchess.com"]
[Source "ChessBase"]
[SourceQuality "1"]
[TimeControl "40/5400+30:1800+30"]

1. e4 {[%emt 0:00:00]} c5 {[%emt 0:00:00]} 2. Nf3 {[%emt 0:00:00]} d6 {[%emt 0:00:00]} 3. d4 {[%emt 0:00:11]} cxd4 {[%emt 0:00:00]} 4. Nxd4 {[%emt 0:00:10]} Nf6 {[%emt 0:00:00]} 5. Nc3 {[%emt 0:00:05]} a6 {[%emt 0:00:00]} 6. Bd3 {[%emt 0:00:55]} Nc6 {[%emt 0:00:25]} 7. Nxc6 {[%emt 0:00:10]} bxc6 {[%emt 0:00:03]} 8. b3 {[%emt 0:00:05]} g6 {[%emt 0:02:49]} 9. Bb2 {[%emt 0:00:04]} Bh6 {[%emt 0:02:25]} 10. O-O {[%emt 0:06:43]} O-O {[%emt 0:00:09]} 11. Na4 {[%emt 0:01:41]} e5 {[%emt 0:02:11]} 12. Qe2 {[%emt 0:08:15]} a5 {[%emt 0:04:06]} 13. Rad1 {[%emt 0:11:51]} Re8 {[%emt 0:03:36]} 14. Bc4 {[%emt 0:08:29]} Ra7 {[%emt 0:16:35]} 15. Bd3 {[%emt 0:21:18]} Kg7 {[%emt 0:06:04]} 16. g3 {[%emt 0:06:35]} Bh3 {[%emt 0:08:06]} 17. Rfe1 {[%emt 0:00:19]} Qe7 {[%emt 0:18:59]} 18. f3 {[%emt 0:02:47]} Bg5 {[%emt 0:00:17]} 19. Qf2 {[%emt 0:01:03]} h5 {[%emt 0:01:30]} 20. Bf1 {[%emt 0:04:01]} Bxf1 {[%emt 0:04:05]} 21. Kxf1 {[%emt 0:00:20]} h4 {[%emt 0:04:50]} 22. Ba3 {[%emt 0:08:28]} c5 {[%emt 0:05:14]} 23. Nxc5 {[%emt 0:02:42]} hxg3 {[%emt 0:00:38]} 24. hxg3 {[%emt 0:00:08]} Rh8 {[%emt 0:04:17]} 25. Na4 {[%emt 0:03:23]} Ra6 {[%emt 0:00:44]} 26. Kg2 {[%emt 0:01:27]} Nh5 {[%emt 0:00:17]} 27. Rh1 {[%emt 0:00:57]} Bf4 {[%emt 0:00:48]} 28. g4 {[%emt 0:07:42]} Bg3 {[%emt 0:07:59]} 29. Qe3 {[%emt 0:00:03]} Bf4 {[%emt 0:01:07]} 30. Qf2 {[%emt 0:00:04]} Bg3 {[%emt 0:00:04]} 31. Qe3 {[%emt 0:00:02]} Bf4 {[%emt 0:00:08]} 32. Qf2 1/2-1/2